lending/lending_fUSD_20250408
["ID","MTS","AMOUNT","RATE_DAILY","PERIOD"]
[357553893,1744138253337,-156.00538032,0.00054794,120]
[357553894,1744138253374,-361.75626288,0.00054794,120]
[357553895,1744138253383,-500.0,0.00054794,120]
[357553896,1744138253395,-500.0,0.00054794,120]
[357553897,1744138253405,-500.0,0.00054794,120]
[357553898,1744138253414,-500.0,0.00054794,120]
[357553899,1744138253423,-500.0,0.00054794,120]
[357553900,1744138253434,-151.0,0.00054794,120]
[357553901,1744138253444,-306.45611873,0.00054794,120]
[357553902,1744138253467,-193.54388127,0.00054794,120]
[357553903,1744138253477,-500.0,0.00054794,120]
[357553904,1744138253486,-500.0,0.00054794,120]
[357553905,1744138253495,-500.0,0.00054794,120]
[357553906,1744138253505,-151.967594,0.00054794,120]
[357553907,1744138253514,-519.40124415,0.00054794,120]
[357553908,1744138253524,-500.0,0.00054794,120]
[357553909,1744138253533,-7.97263727,0.00054794,120]
[357553910,1744138253558,-492.02736273,0.00054794,120]
[357553911,1744138253567,-500.0,0.00054794,120]
[357553912,1744138253577,-505.88683209,0.00054794,120]
[357553913,1744138253586,-500.0,0.00054794,120]
[357553914,1744138253596,-281.36137435,0.00054794,120]
[357553915,1744138253608,-218.63862565,0.00054794,120]
[357553916,1744138253618,-500.0,0.00054794,120]
[357553917,1744138253627,-500.0,0.00054794,120]
[357553918,1744138253636,-500.0,0.00054794,120]
[357553919,1744138253646,-500.0,0.00054794,120]
[357553920,1744138253655,-205.35674439,0.00054794,120]
[357553921,1744138253711,-294.64325561,0.00054794,120]
[357553922,1744138253721,-327.49817406,0.00054794,120]
[357553923,1744138253730,-500.0,0.00054794,120]
[357553924,1744138253739,-500.0,0.00054794,120]
[357553925,1744138253749,-500.0,0.00054794,120]
[357553926,1744138253758,-500.0,0.00054794,120]
[357553927,1744138253767,-500.0,0.00054794,120]
[357553928,1744138253777,-500.0,0.00054794,120]
[357553929,1744138253787,-526.91859791,0.00054794,120]
[357553930,1744138253796,-500.0,0.00054794,120]
[357553931,1744138253806,-500.0,0.00054794,120]
[357553932,1744138253815,-173.68303858,0.00054794,120]
[357553933,1744138253826,-727.03,0.00054794,120]
[357553934,1744138253835,-500.0,0.00054794,120]
[357553935,1744138253844,-417.03931835,0.00054794,120]
[357553936,1744138253854,-500.0,0.00054794,120]
[357553937,1744138253864,-500.0,0.00054794,120]
[357553938,1744138253873,-642.66,0.00054794,120]
[357553939,1744138253883,-500.0,0.00054794,120]
[357553940,1744138253892,-500.0,0.00054794,120]
[357553941,1744138253902,-500.0,0.00054794,120]
[357553942,1744138253911,-529.14725579,0.00054794,120]
[357553943,1744138253921,-500.0,0.00054794,120]
[357553944,1744138253931,-500.0,0.00054794,120]
[357553945,1744138253941,-500.0,0.00054794,120]
[357553946,1744138253950,-500.0,0.00054794,120]
[357553947,1744138253960,-159.768129,0.00054794,120]
[357553948,1744138253970,-500.0,0.00054794,120]
[357553949,1744138253979,-534.12095553,0.00054794,120]
[357553950,1744138253989,-500.0,0.00054794,120]
[357553951,1744138253999,-500.0,0.00054794,120]
[357553952,1744138254009,-509.95914876,0.00054794,120]
[357553953,1744138254019,-500.0,0.00054794,120]
[357553954,1744138254028,-502.13,0.00054794,120]
[357553955,1744138254038,-500.0,0.00054794,120]
[357553956,1744138254048,-512.22756471,0.00054794,120]
[357553957,1744138254058,-500.0,0.00054794,120]
[357553958,1744138254068,-500.0,0.00054794,120]
[357553959,1744138254077,-641.91,0.00054794,120]
[357553960,1744138254087,-500.0,0.00054794,120]
[357553961,1744138254096,-500.0,0.00054794,120]
[357553962,1744138254106,-500.0,0.00054794,120]
[357553963,1744138254116,-500.0,0.00054794,120]
[357553964,1744138254126,-500.0,0.00054794,120]
[357553965,1744138254136,-524.73360411,0.00054794,120]
[357553966,1744138254145,-500.0,0.00054794,120]
[357553967,1744138254155,-500.0,0.00054794,120]
[357553968,1744138254164,-500.0,0.00054794,120]
[357553969,1744138254174,-502.17157583,0.00054794,120]
[357553970,1744138254183,-500.0,0.00054794,120]
[357553971,1744138254193,-500.0,0.00054794,120]
[357553972,1744138254202,-774.81,0.00054794,120]
[357553973,1744138254212,-500.0,0.00054794,120]
[357553974,1744138254222,-500.0,0.00054794,120]
[357553975,1744138254231,-500.0,0.00054794,120]
[357553976,1744138254241,-500.0,0.00054794,120]
[357553977,1744138254250,-500.0,0.00054794,120]
[357553978,1744138254260,-1080.15,0.00054794,120]
[357553979,1744138254269,-500.0,0.00054794,120]
[357553980,1744138254279,-500.0,0.00054794,120]
[357553981,1744138254288,-500.0,0.00054794,120]
[357553982,1744138254297,-593.99316625,0.00054794,120]
[357553983,1744138254306,-500.0,0.00054794,120]
[357553984,1744138254316,-505.34262259,0.00054794,120]
[357553985,1744138254325,-500.0,0.00054794,120]
[357553986,1744138254334,-532.17,0.00054794,120]
[357553987,1744138254343,-500.0,0.00054794,120]
[357553988,1744138254353,-500.0,0.00054794,120]
[357553989,1744138254366,-505.71821721,0.00054794,120]
[357553990,1744138254375,-500.0,0.00054794,120]
[357553991,1744138254385,-500.0,0.00054794,120]
[357553992,1744138254394,-500.0,0.00054794,120]
[357553993,1744138254405,-211.10826586,0.00054794,120]
[357553994,1744138254415,-500.0,0.00054794,120]
[357553995,1744138254425,-613.56680317,0.00054794,120]
[357553996,1744138254435,-839.72,0.00054794,120]
[357553997,1744138254446,-526.77,0.00054794,120]
[357553998,1744138254457,-500.0,0.00054794,120]
[357553999,1744138254466,-505.32345624,0.00054794,120]
[357554000,1744138254476,-551.71541612,0.00054794,120]
[357554001,1744138254486,-500.0,0.00054794,120]
[357554002,1744138254495,-500.0,0.00054794,120]
[357554003,1744138254505,-500.0,0.00054794,120]
[357554004,1744138254514,-500.0,0.00054794,120]
[357554005,1744138254523,-192.84332681,0.00054794,120]
[357554006,1744138254533,-500.0,0.00054794,120]
[357554007,1744138254542,-501.21201528,0.00054794,120]
[357554008,1744138254551,-500.0,0.00054794,120]
[357554009,1744138254560,-505.77308166,0.00054794,120]
[357554010,1744138254570,-500.0,0.00054794,120]
[357554011,1744138254580,-500.0,0.00054794,120]
[357554012,1744138254589,-504.89152533,0.00054794,120]
[357554013,1744138254598,-500.0,0.00054794,120]
[357554014,1744138254608,-500.0,0.00054794,120]
[357554015,1744138254617,-500.0,0.00054794,120]
[357554016,1744138254627,-500.0,0.00054794,120]
[357554017,1744138254637,-500.0,0.00054794,120]
[357554018,1744138254646,-500.0,0.00054794,120]
[357554019,1744138254655,-500.0,0.00054794,120]
[357554020,1744138254664,-500.0,0.00054794,120]
[357554021,1744138254674,-616.88,0.00054794,120]
[357554022,1744138254683,-500.0,0.00054794,120]
[357554023,1744138254692,-500.0,0.00054794,120]
[357554024,1744138254701,-500.0,0.00054794,120]
[357554025,1744138254711,-535.68332083,0.00054794,120]
[357554026,1744138254720,-500.0,0.00054794,120]
[357554027,1744138254729,-504.59699807,0.00054794,120]
[357554028,1744138254739,-500.0,0.00054794,120]
[357554029,1744138254748,-500.0,0.00054794,120]
[357554030,1744138254758,-500.0,0.00054794,120]
[357554031,1744138254767,-500.0,0.00054794,120]
[357554032,1744138254776,-500.0,0.00054794,120]
[357554033,1744138254786,-500.0,0.00054794,120]
[357554034,1744138254795,-500.0,0.00054794,120]
[357554035,1744138254805,-151.0,0.00054794,120]
[357554036,1744138254814,-510.24137384,0.00054794,120]
[357554037,1744138254824,-500.0,0.00054794,120]
[357554038,1744138254834,-500.0,0.00054794,120]
[357554039,1744138254843,-500.0,0.00054794,120]
[357554040,1744138254853,-759.53,0.00054794,120]
[357554041,1744138254863,-514.8000961,0.00054794,120]
[357554042,1744138254873,-500.0,0.00054794,120]
[357554043,1744138254882,-500.0,0.00054794,120]
[357554044,1744138254892,-500.0,0.00054794,120]
[357554045,1744138254901,-500.0,0.00054794,120]
[357554046,1744138254910,-2000.0,0.00054794,2]
[357554047,1744138254919,-818.49,0.00054794,120]
[357554048,1744138254929,-151.0,0.00054794,90]
[357554049,1744138254938,-500.0,0.00054794,120]
[357554050,1744138254947,-500.0,0.00054794,120]
[357554051,1744138254958,-500.0,0.00054794,120]
[357554052,1744138254968,-506.8,0.00054794,120]
[357554053,1744138254977,-517.40155986,0.00054794,120]
[357554054,1744138254987,-500.0,0.00054794,120]
[357554055,1744138254997,-500.0,0.00054794,120]
[357554056,1744138255007,-500.0,0.00054794,120]
[357554057,1744138255016,-500.0,0.00054794,120]
[357554058,1744138255026,-500.0,0.00054794,120]
[357554059,1744138255036,-500.0,0.00054794,120]
[357554060,1744138255045,-500.0,0.00054794,120]
[357554061,1744138255054,-957.89,0.00054794,120]
[357554062,1744138255062,-500.0,0.00054794,120]
[357554063,1744138255071,-500.0,0.00054794,120]
[357554064,1744138255081,-500.0,0.00054794,120]
[357554065,1744138255092,-500.0,0.00054794,120]
[357554066,1744138255101,-500.0,0.00054794,120]
[357554067,1744138255111,-500.0,0.00054794,120]
[357554068,1744138255121,-500.0,0.00054794,120]
[357554069,1744138255131,-500.0,0.00054794,120]
[357554070,1744138255140,-529.04,0.00054794,120]
[357554071,1744138255150,-332.94315734,0.00054794,120]
[357554072,1744138255160,-500.0,0.00054794,120]
[357554073,1744138255169,-505.08063511,0.00054794,120]
[357554074,1744138255179,-500.0,0.00054794,120]
[357554075,1744138255188,-500.0,0.00054794,120]
[357554076,1744138255197,-500.0,0.00054794,120]
[357554077,1744138255208,-510.53169909,0.00054794,120]
[357554078,1744138255217,-500.0,0.00054794,120]
[357554079,1744138255226,-500.0,0.00054794,120]
[357554080,1744138255235,-266.43833639,0.00054794,120]
[357554081,1744138255244,-500.0,0.00054794,120]
[357554082,1744138255253,-500.0,0.00054794,120]
[357554083,1744138255262,-500.0,0.00054794,120]
[357554084,1744138255272,-500.0,0.00054794,120]
[357554085,1744138255281,-500.0,0.00054794,120]
[357554086,1744138255290,-500.0,0.00054794,120]
[357554087,1744138255300,-500.0,0.00054794,120]
[357554088,1744138255309,-500.0,0.00054794,120]
[357554089,1744138255318,-500.0,0.00054794,120]
[357554090,1744138255327,-500.0,0.00054794,120]
[357554091,1744138255336,-500.0,0.00054794,120]
[357554092,1744138255346,-500.0,0.00054794,120]
[357554093,1744138255355,-151.0,0.00054794,120]
[357554094,1744138255369,-151.0,0.00054794,120]
[357554095,1744138255378,-500.0,0.00054794,120]
[357554096,1744138255387,-641.83,0.00054794,120]
[357554097,1744138255398,-500.0,0.00054794,120]
[357554098,1744138255408,-500.0,0.00054794,120]
[357554099,1744138255417,-161.753088,0.00054794,120]
[357554100,1744138255427,-500.0,0.00054794,120]
[357554101,1744138255437,-500.0,0.00054794,120]
[357554102,1744138255447,-500.0,0.00054794,120]
[357554103,1744138255457,-500.0,0.00054794,120]
[357554104,1744138255467,-500.0,0.00054794,120]
[357554105,1744138255476,-3093.47,0.00054794,2]
[357554106,1744138255486,-542.07,0.00054794,120]
[357554107,1744138255495,-500.0,0.00054794,120]
[357554108,1744138255504,-500.0,0.00054794,120]
[357554109,1744138255514,-910.61,0.00054794,120]
[357554110,1744138255524,-504.14404313,0.00054794,120]
[357554111,1744138255534,-501.26981939,0.00054794,120]
[357554112,1744138255547,-503.1051278,0.00054794,120]
[357554113,1744138255556,-500.0,0.00054794,120]
[357554114,1744138255566,-553.33719183,0.00054794,120]
[357554115,1744138255576,-500.0,0.00054794,120]
[357554116,1744138255585,-500.0,0.00054794,120]
[357554117,1744138255594,-500.0,0.00054794,120]
[357554118,1744138255603,-151.0,0.00054794,120]
[357554119,1744138255613,-151.0,0.00054794,120]
[357554120,1744138255623,-500.0,0.00054794,7]
[357554121,1744138255632,-500.0,0.00054794,120]
[357554122,1744138255641,-151.0,0.00054794,120]
[357554123,1744138255651,-151.0,0.00054794,120]
[357554124,1744138255660,-500.0,0.00054794,120]
[357554125,1744138255669,-306.13849607,0.00054794,30]
[357554126,1744138255679,-500.0,0.00054794,120]
[357554127,1744138255688,-768.68,0.00054794,120]
[357554128,1744138255698,-500.0,0.00054794,120]
[357554129,1744138255707,-643.12,0.00054794,120]
[357554130,1744138255717,-151.0,0.00054794,120]
[357554131,1744138255726,-151.0,0.00054794,120]
[357554132,1744138255735,-500.0,0.00054794,120]
[357554133,1744138255744,-612.04,0.00054794,120]
[357554134,1744138255811,-151.0,0.00054794,120]
[357554135,1744138255821,-500.0,0.00054794,120]
[357554136,1744138255830,-151.0,0.00054794,120]
[357554137,1744138255840,-500.0,0.00054794,120]
[357554138,1744138255849,-500.0,0.00054794,120]
[357554139,1744138255858,-500.0,0.00054794,120]
[357554140,1744138255867,-500.0,0.00054794,120]
[357554141,1744138255876,-151.0,0.00054794,120]
[357554142,1744138255886,-151.0,0.00054794,120]
[357554143,1744138255895,-151.0,0.00054794,120]
[357554144,1744138255904,-668.73,0.00054794,120]
[357554145,1744138255913,-151.0,0.00054794,120]
[357554146,1744138255922,-500.0,0.00054794,120]
[357554147,1744138255931,-500.0,0.00054794,120]
[357554148,1744138255940,-500.0,0.00054794,120]
[357554149,1744138255949,-500.0,0.00054794,120]
[357554150,1744138255960,-500.0,0.00054794,120]
[357554151,1744138255970,-500.0,0.00054794,120]
[357554152,1744138255979,-500.0,0.00054794,120]
[357554153,1744138255988,-500.0,0.00054794,120]
[357554154,1744138255997,-500.0,0.00054794,120]
[357554155,1744138256007,-500.0,0.00054794,120]
[357554156,1744138256017,-526.18269645,0.00054794,120]
[357554157,1744138256026,-500.0,0.00054794,120]
[357554158,1744138256035,-500.0,0.00054794,120]
[357554159,1744138256045,-500.0,0.00054794,120]
[357554160,1744138256054,-500.0,0.00054794,120]
[357554161,1744138256063,-500.0,0.00054794,120]
[357554162,1744138256072,-500.0,0.00054794,120]
[357554163,1744138256081,-509.30989441,0.00054794,120]
[357554164,1744138256091,-500.0,0.00054794,120]
[357554165,1744138256100,-500.0,0.00054794,120]
[357554166,1744138256109,-386.05333664,0.00054794,120]
[357554167,1744138256119,-500.0,0.00054794,120]
[357554168,1744138256128,-536.0,0.00054794,120]
[357554169,1744138256138,-500.0,0.00054794,120]
[357554170,1744138256147,-500.0,0.00054794,120]
[357554171,1744138256156,-569.96959193,0.00054794,120]
[357554172,1744138256166,-500.0,0.00054794,120]
[357554173,1744138256175,-500.0,0.00054794,30]
[357554174,1744138256184,-500.0,0.00054794,120]
[357554175,1744138256193,-500.0,0.00054794,120]
[357554176,1744138256202,-635.04841678,0.00054794,120]
[357554177,1744138256212,-507.14,0.00054794,60]
[357554178,1744138256221,-626.86,0.00054794,120]
[357554179,1744138256230,-554.11394551,0.00054794,120]
[357554180,1744138256239,-500.0,0.00054794,120]
[357554181,1744138256249,-500.0,0.00054794,120]
[357554182,1744138256258,-305.37894981,0.00054794,120]
[357554183,1744138256267,-500.0,0.00054794,120]
[357554184,1744138256276,-500.0,0.00054794,120]
[357554185,1744138256285,-534.12,0.00054794,120]
[357554186,1744138256294,-862.26,0.00054794,120]
[357554187,1744138256303,-506.40701238,0.00054794,120]
[357554188,1744138256312,-500.0,0.00054794,120]
[357554189,1744138256322,-151.0,0.00054794,120]
[357554190,1744138256332,-604.05,0.00054794,120]
[357554191,1744138256342,-536.23967936,0.00054794,120]
[357554192,1744138256352,-500.0,0.00054794,120]
[357554193,1744138256365,-500.0,0.00054794,120]
[357554194,1744138256374,-500.0,0.00054794,120]
[357554195,1744138256383,-151.0,0.00054794,120]
[357554196,1744138256392,-501.16801172,0.00054794,120]
[357554197,1744138256403,-500.0,0.00054794,120]
[357554198,1744138256412,-500.0,0.00054794,120]
[357554199,1744138256421,-505.88043722,0.00054794,120]
[357554200,1744138256431,-500.0,0.00054794,120]
[357554201,1744138256441,-500.0,0.00054794,120]
[357554202,1744138256451,-500.0,0.00054794,120]
[357554203,1744138256462,-500.0,0.00054794,120]
[357554204,1744138256471,-1184.61,0.00054794,120]
[357554205,1744138256480,-500.0,0.00054794,120]
[357554206,1744138256489,-513.26882206,0.00054794,120]
[357554207,1744138256499,-500.0,0.00054794,120]
[357554208,1744138256508,-500.0,0.00054794,120]
[357554209,1744138256517,-500.0,0.00054794,120]
[357554210,1744138256526,-500.0,0.00054794,120]
[357554211,1744138256535,-520.42546035,0.00054794,120]
[357554212,1744138256544,-500.0,0.00054794,120]
[357554213,1744138256553,-500.0,0.00054794,120]
[357554214,1744138256562,-925.58,0.00054794,120]
[357554215,1744138256572,-500.0,0.00054794,120]
[357554216,1744138256581,-500.82835122,0.00054794,120]
[357554217,1744138256590,-569.55538775,0.00054794,120]
[357554218,1744138256600,-500.0,0.00054794,120]
[357554219,1744138256609,-625.32943722,0.00054794,120]
[357554220,1744138256618,-512.38583507,0.00054794,120]
[357554221,1744138256627,-500.0,0.00054794,120]
[357554222,1744138256636,-500.0,0.00054794,120]
[357554223,1744138256645,-500.0,0.00054794,120]
[357554224,1744138256654,-654.53,0.00054794,120]
[357554225,1744138256663,-510.48779879,0.00054794,120]
[357554226,1744138256672,-500.0,0.00054794,120]
[357554227,1744138256681,-500.0,0.00054794,120]
[357554228,1744138256690,-338.60270672,0.00054794,120]
[357554229,1744138256700,-512.43011038,0.00054794,120]
[357554230,1744138256711,-616.42,0.00054794,120]
[357554231,1744138256720,-500.0,0.00054794,120]
[357554232,1744138256730,-500.0,0.00054794,120]
[357554233,1744138256739,-500.0,0.00054794,120]
[357554234,1744138256748,-500.0,0.00054794,120]
[357554235,1744138256758,-500.0,0.00054794,120]
[357554236,1744138256767,-500.0,0.00054794,120]
[357554237,1744138256776,-500.0,0.00054794,120]
[357554238,1744138256785,-500.0,0.00054794,120]
[357554239,1744138256795,-565.37916999,0.00054794,120]
[357554240,1744138256804,-500.0,0.00054794,120]
[357554241,1744138256813,-500.0,0.00054794,120]
[357554242,1744138256822,-530.46,0.00054794,120]
[357554243,1744138256831,-500.0,0.00054794,120]
[357554244,1744138256840,-500.0,0.00054794,120]
[357554245,1744138256850,-500.0,0.00054794,120]
[357554246,1744138256859,-500.0,0.00054794,120]
[357554247,1744138256869,-500.0,0.00054794,120]
[357554248,1744138256878,-151.0,0.00054794,120]
[357554249,1744138256887,-151.0,0.00054794,120]
[357554250,1744138256897,-500.0,0.00054794,120]
[357554251,1744138256906,-500.0,0.00054794,120]
[357554252,1744138256915,-500.0,0.00054794,120]
[357554253,1744138256924,-500.0,0.00054794,120]
[357554254,1744138256934,-500.0,0.00054794,120]
[357554255,1744138256943,-500.0,0.00054794,120]
[357554256,1744138256952,-504.93255875,0.00054794,120]
[357554257,1744138256962,-300.0,0.00054794,120]
[357554258,1744138256972,-653.48,0.00054794,120]
[357554259,1744138256981,-501.90806712,0.00054794,120]
[357554260,1744138256991,-500.0,0.00054794,120]
[357554261,1744138257000,-500.0,0.00054794,120]
[357554262,1744138257009,-500.0,0.00054794,120]
[357554263,1744138257019,-500.0,0.00054794,120]
[357554264,1744138257028,-535.28,0.00054794,120]
[357554265,1744138257037,-500.0,0.00054794,120]
[357554266,1744138257047,-500.0,0.00054794,120]
[357554267,1744138257056,-500.0,0.00054794,120]
[357554268,1744138257066,-500.0,0.00054794,120]
[357554269,1744138257075,-526.46207926,0.00054794,120]
[357554270,1744138257084,-500.0,0.00054794,120]
[357554271,1744138257094,-151.0,0.00054794,120]
[357554272,1744138257104,-154.714453,0.00054794,120]
[357554273,1744138257113,-535.62,0.00054794,120]
[357554274,1744138257122,-610.32,0.00054794,120]
[357554275,1744138257132,-500.0,0.00054794,120]
[357554276,1744138257141,-500.0,0.00054794,120]
[357554277,1744138257151,-500.0,0.00054794,120]
[357554278,1744138257161,-541.23137588,0.00054794,120]
[357554279,1744138257172,-500.0,0.00054794,120]
[357554280,1744138257181,-500.0,0.00054794,120]
[357554281,1744138257191,-506.22834439,0.00054794,120]
[357554282,1744138257201,-680.67,0.00054794,120]
[357554283,1744138257212,-500.0,0.00054794,120]
[357554284,1744138257221,-507.75509645,0.00054794,120]
[357554285,1744138257230,-500.0,0.00054794,120]
[357554286,1744138257240,-512.2,0.00054794,120]
[357554287,1744138257250,-519.958909,0.00054794,120]
[357554288,1744138257259,-500.0,0.00054794,120]
[357554289,1744138257268,-260.03647504,0.00054794,120]
[357554290,1744138257277,-500.0,0.00054794,120]
[357554291,1744138257287,-505.73665257,0.00054794,120]
[357554292,1744138257296,-500.0,0.00054794,120]
[357554293,1744138257305,-570.42702448,0.00054794,120]
[357554294,1744138257315,-500.0,0.00054794,120]
[357554295,1744138257324,-500.0,0.00054794,120]
[357554296,1744138257334,-507.85554665,0.00054794,120]
[357554297,1744138257344,-2024.51,0.00054794,120]
[357554298,1744138257354,-500.0,0.00054794,120]
[357554299,1744138257369,-500.0,0.00054794,120]
[357554300,1744138257379,-500.0,0.00054794,120]
[357554301,1744138257388,-501.70571615,0.00054794,120]
[357554302,1744138257398,-500.0,0.00054794,120]
[357554303,1744138257408,-500.0,0.00054794,120]
[357554304,1744138257417,-509.28779918,0.00054794,120]
[357554305,1744138257427,-516.60263684,0.00054794,120]
[357554306,1744138257437,-500.0,0.00054794,120]
[357554307,1744138257447,-500.0,0.00054794,120]
[357554308,1744138257456,-510.39897368,0.00054794,120]
[357554309,1744138257470,-500.0,0.00054794,120]
[357554310,1744138257481,-525.96874371,0.00054794,120]
[357554311,1744138257494,-500.0,0.00054794,120]
[357554312,1744138257504,-539.83971647,0.00054794,120]
[357554313,1744138257514,-500.0,0.00054794,120]
[357554314,1744138257524,-509.32,0.00054794,120]
[357554315,1744138257533,-500.0,0.00054794,120]
[357554316,1744138257543,-500.0,0.00054794,120]
[357554317,1744138257552,-760.14,0.00054794,120]
[357554318,1744138257561,-500.0,0.00054794,120]
[357554319,1744138257571,-500.0,0.00054794,120]
[357554320,1744138257580,-507.98763849,0.00054794,120]
[357554321,1744138257589,-500.0,0.00054794,120]
[357554322,1744138257598,-500.0,0.00054794,120]
[357554323,1744138257608,-500.0,0.00054794,120]
[357554324,1744138257617,-500.0,0.00054794,120]
[357554325,1744138257627,-500.0,0.00054794,120]
[357554326,1744138257636,-500.0,0.00054794,120]
[357554327,1744138257645,-500.0,0.00054794,120]
[357554328,1744138257656,-500.0,0.00054794,120]
[357554329,1744138257665,-505.21213795,0.00054794,120]
[357554330,1744138257675,-500.0,0.00054794,120]
[357554331,1744138257684,-151.0,0.00054794,120]
[357554332,1744138257693,-152.511849,0.00054794,120]
[357554333,1744138257702,-500.0,0.00054794,120]
[357554334,1744138257713,-517.42616475,0.00054794,120]
[357554335,1744138257723,-51147.09,0.00054794,7]
[357554336,1744138257732,-500.0,0.00054794,120]
[357554337,1744138257741,-500.0,0.00054794,120]
[357554338,1744138257750,-151.0,0.00054794,120]
[357554339,1744138257759,-154.971838,0.00054794,120]
[357554340,1744138257769,-500.0,0.00054794,120]
[357554341,1744138257778,-500.0,0.00054794,120]
[357554342,1744138257787,-151.0,0.00054794,120]
[357554343,1744138257796,-500.0,0.00054794,120]
[357554344,1744138257805,-151.0,0.00054794,120]
[357554345,1744138257815,-519.06871972,0.00054794,120]
[357554346,1744138257824,-500.0,0.00054794,120]
[357554347,1744138257833,-660.39,0.00054794,120]
[357554348,1744138257843,-500.0,0.00054794,120]
[357554349,1744138257852,-500.0,0.00054794,120]
[357554350,1744138257863,-506.30769705,0.00054794,120]
[357554351,1744138257872,-504.38657359,0.00054794,120]
[357554352,1744138257881,-1215.73,0.00054794,120]
[357554353,1744138257891,-500.0,0.00054794,120]
[357554354,1744138257900,-500.0,0.00054794,120]
[357554355,1744138257910,-915.04,0.00054794,120]
[357554356,1744138257920,-500.0,0.00054794,120]
[357554357,1744138257931,-500.0,0.00054794,120]
[357554358,1744138257941,-500.0,0.00054794,120]
[357554359,1744138257950,-500.0,0.00054794,120]
[357554360,1744138257961,-500.0,0.00054794,120]
[357554361,1744138257971,-500.0,0.00054794,120]
[357554362,1744138257980,-602.21,0.00054794,120]
[357554363,1744138257990,-500.0,0.00054794,120]
[357554364,1744138258000,-2021.08,0.00054794,7]
[357554365,1744138258010,-500.0,0.00054794,120]
[357554366,1744138258019,-500.0,0.00054794,120]
[357554367,1744138258028,-500.0,0.00054794,120]
[357554368,1744138258038,-500.0,0.00054794,120]
[357554369,1744138258047,-151.0,0.00054794,120]
[357554370,1744138258056,-500.0,0.00054794,120]
[357554371,1744138258066,-504.82434391,0.00054794,120]
[357554372,1744138258075,-500.0,0.00054794,120]
[357554373,1744138258084,-500.0,0.00054794,120]
[357554374,1744138258094,-504.96628764,0.00054794,120]
[357554375,1744138258103,-1529.35,0.00054794,120]
[357554376,1744138258113,-501.74283449,0.00054794,120]
[357554377,1744138258122,-500.0,0.00054794,120]
[357554378,1744138258132,-500.0,0.00054794,120]
[357554379,1744138258141,-552.83,0.00054794,120]
[357554380,1744138258150,-500.0,0.00054794,120]
[357554381,1744138258161,-500.0,0.00054794,120]
[357554382,1744138258170,-500.0,0.00054794,120]
[357554383,1744138258179,-500.0,0.00054794,120]
[357554384,1744138258188,-500.0,0.00054794,120]
[357554385,1744138258197,-500.0,0.00054794,120]
[357554386,1744138258207,-500.0,0.00054794,120]
[357554387,1744138258217,-500.0,0.00054794,120]
[357554388,1744138258227,-500.0,0.00054794,120]
[357554389,1744138258236,-510.36056158,0.00054794,120]
[357554390,1744138258245,-501.70511523,0.00054794,120]
[357554391,1744138258254,-500.0,0.00054794,120]
[357554392,1744138258264,-500.0,0.00054794,120]